bitfinex/quotes_ETHUSD_20260106
["timestamp","ask_amount","ask_price","bid_price","bid_amount"]
[1767685584932,0.93138312,3212.7,3212.2,0.03120897]
[1767685585174,0.93138312,3212.7,3212.2,0.01604575]
[1767685585354,0.93138312,3212.7,3212.2,6.66202473]
[1767685585553,0.001,3212.7,3212.2,6.91424721]
[1767685585747,0.001,3212.7,3212.3,0.25222248]
[1767685585942,0.93138312,3213.0,3212.3,0.25222248]
[1767685586143,0.001,3213.0,3212.4,3.36515984]
[1767685586358,0.001,3213.0,3212.6,0.25222248]
[1767685586947,0.816,3213.8,3212.9,0.25222248]
[1767685586948,0.93038312,3213.6,3212.9,0.25222248]
[1767685587335,0.816,3213.8,3212.9,0.25222248]
[1767685587336,0.93038312,3213.8,3212.9,0.25222248]
[1767685587982,0.001,3213.9,3212.9,0.25222248]
[1767685588151,0.001,3213.9,3213.1,0.25222248]
[1767685588354,0.001,3213.9,3213.2,0.25222248]
[1767685588548,0.93138312,3213.9,3213.0,0.25222248]
[1767685588781,0.93138312,3213.9,3213.1,3.1122327]
[1767685588940,0.93138312,3213.9,3212.7,3.11262532]
[1767685589139,0.93038312,3213.7,3212.8,0.816]
[1767685589483,0.93038312,3213.7,3212.9,0.25222248]
[1767685589862,0.93038312,3213.7,3213.0,3.11230116]
[1767685590046,0.93038312,3213.7,3212.9,0.25222248]
[1767685590244,0.93038312,3213.7,3213.0,0.25222248]
[1767685590464,0.93038312,3213.7,3213.0,6.47693458]
[1767685590662,0.93038312,3213.7,3213.0,3.36457853]
[1767685592773,0.97952309,3213.9,3213.1,0.25222248]
[1767685593143,0.001,3213.4,3213.1,0.25222248]
[1767685593537,0.001,3213.9,3213.2,0.25222248]
[1767685593971,0.97952309,3213.9,3213.2,0.25222248]
[1767685594351,0.97952309,3213.9,3213.0,3.36457853]
[1767685594545,0.97952309,3213.9,3213.0,3.11235605]
[1767685595877,0.97952309,3213.9,3213.0,6.21751565]
[1767685596244,0.97952309,3213.9,3213.0,3.1051596]
[1767685596444,0.97952309,3213.9,3213.0,6.21751565]
[1767685597748,0.97952309,3213.9,3213.0,0.25222248]
[1767685597950,0.97952309,3213.9,3213.1,0.25222248]
[1767685599676,0.001,3213.9,3213.3,0.25222248]
[1767685599973,0.97952309,3213.9,3213.2,3.11210013]
[1767685600471,0.97952309,3213.9,3213.3,3.11205082]
[1767685602386,0.97952309,3213.9,3213.2,3.11216233]
[1767685602984,0.97952309,3213.9,3213.1,0.25222248]
[1767685603170,0.97852309,3213.8,3213.0,3.92730324]
[1767685603359,0.97852309,3213.8,3213.1,3.11224579]
[1767685604873,0.001,3213.6,3213.1,3.11224579]
[1767685608575,0.001,3213.6,3213.1,6.22450497]
[1767685609116,0.001,3213.6,3213.1,3.11224579]
[1767685609883,0.001,3213.6,3213.0,3.11231504]
[1767685610221,0.97952309,3213.6,3213.0,3.84152212]
[1767685610430,0.97952309,3213.6,3213.0,6.95387817]
[1767685610599,0.97952309,3213.6,3213.0,7.20610065]
[1767685611009,0.001,3213.6,3213.0,7.20610065]
[1767685611793,0.001,3213.6,3213.0,4.0937446]
[1767685612203,0.001,3213.6,3213.0,7.20610065]
[1767685612402,0.001,3213.6,3213.1,0.80211006]
[1767685612814,0.001,3213.6,3213.2,3.14319793]
[1767685613017,0.001,3213.6,3213.2,3.11207631]
[1767685613803,0.001,3213.6,3213.1,0.80211006]
[1767685613804,0.97952309,3213.6,3213.1,3.91434508]
[1767685614125,0.97952309,3213.6,3212.5,0.58873846]
[1767685614322,0.97952309,3213.6,3212.8,3.11247026]
[1767685614797,0.97952309,3213.6,3212.7,3.11260393]
[1767685615206,0.97852309,3213.5,3212.7,3.11260393]
[1767685615610,0.97852309,3213.5,3212.5,3.36504033]
[1767685615611,0.97852309,3213.5,3212.5,3.11282773]
[1767685615923,0.97852309,3213.5,3212.3,0.815]
[1767685616123,0.97852309,3213.3,3212.6,3.11270248]
[1767685616319,0.97852309,3213.3,3212.5,3.11280503]
[1767685616803,0.97952309,3213.3,3212.5,3.11280503]
[1767685617001,0.97952309,3213.3,3212.3,4.18023843]
[1767685617002,0.97952309,3213.3,3212.4,3.11293736]
[1767685618840,0.97852309,3213.2,3212.4,3.11293736]
[1767685619040,0.97852309,3213.2,3212.3,0.815]
[1767685619336,0.97852309,3213.1,3212.2,3.11309289]
[1767685620247,0.97852309,3213.1,3211.9,0.25222248]
[1767685620416,0.960141,3213.0,3211.7,0.25222248]
[1767685620622,0.960141,3212.8,3211.7,3.36581483]
[1767685620916,0.960141,3212.8,3211.3,0.25222248]
[1767685621102,0.90762491,3212.6,3211.1,1.06922248]
[1767685621303,3.11264668,3212.7,3211.1,3.36838524]
[1767685621304,0.90762491,3212.4,3211.1,3.36838524]
[1767685623117,0.90762491,3212.2,3211.1,0.25422248]
[1767685623308,0.90762491,3212.1,3211.1,3.36841191]
[1767685623715,0.90762491,3212.1,3211.1,0.002]
[1767685624635,0.90762491,3212.1,3211.1,3.11618495]
[1767685625210,0.90762491,3212.0,3211.1,0.002]
[1767685627243,0.90762491,3211.9,3211.1,0.002]
[1767685628548,0.90762491,3211.9,3211.7,0.002]
[1767685628718,0.90762491,3211.9,3211.1,0.002]
[1767685629430,0.90762491,3211.8,3211.1,0.002]
[1767685631464,0.90762491,3211.7,3211.1,0.002]
[1767685631750,0.90762491,3211.5,3211.1,0.002]
[1767685633850,0.90762491,3212.4,3211.1,0.002]
[1767685634051,0.90762491,3212.0,3211.1,0.25422248]
[1767685635485,0.90762491,3212.0,3211.2,0.25222248]
[1767685635655,0.90762491,3212.2,3211.4,0.25222248]
[1767685635853,0.90762491,3212.5,3211.4,0.25222248]
[1767685636360,0.90762491,3212.8,3211.6,0.25222248]
[1767685636558,0.66741652,3212.9,3211.6,0.25222248]
[1767685636559,0.66741652,3212.9,3211.8,0.25222248]
[1767685636938,0.66741652,3212.9,3212.2,0.25222248]
[1767685637170,0.001,3213.3,3212.7,0.25222248]
[1767685637339,0.90862491,3213.3,3212.4,0.25222248]
[1767685637546,0.90862491,3213.3,3212.4,3.11287275]
[1767685637766,0.90862491,3213.3,3212.5,0.39288728]
[1767685639275,0.90862491,3213.3,3212.5,0.64510976]
[1767685639478,0.90862491,3213.3,3212.5,3.75787805]
[1767685639772,0.90762491,3213.2,3212.5,0.39288728]
[1767685639941,0.90762491,3213.2,3211.7,0.25222248]
[1767685640140,0.90762491,3213.2,3212.0,3.11326138]
[1767685640374,0.90762491,3213.2,3212.1,3.11321188]
[1767685640571,0.90762491,3213.2,3212.0,3.11328781]
[1767685640774,0.90762491,3213.2,3211.8,1.06822248]
[1767685641176,0.90762491,3213.2,3211.9,0.25222248]
[1767685641365,1.70250618,3213.2,3211.9,0.25222248]
[1767685641670,1.70250618,3213.2,3212.0,3.11332503]
[1767685641671,0.90762491,3213.0,3212.0,3.11332503]
[1767685642074,0.90762491,3213.0,3211.9,3.11341812]
[1767685642371,0.31086669,3213.0,3211.9,3.11341812]
[1767685642550,0.90762491,3212.9,3211.9,3.11341812]
[1767685642757,0.90762491,3212.9,3212.0,0.39294181]
[1767685643277,0.90762491,3212.8,3211.7,0.002]
[1767685643651,0.90762491,3212.7,3211.7,0.002]
[1767685645248,0.90762491,3212.7,3211.7,0.28535863]
[1767685645657,0.816,3212.9,3211.9,0.25222248]
[1767685645971,1.72362491,3212.9,3212.0,0.28335573]
[1767685646172,0.31086669,3213.0,3212.1,0.25222248]
[1767685647076,1.2184916,3213.0,3212.1,0.25222248]
[1767685647646,1.2184916,3213.0,3212.3,3.11303427]
[1767685648667,1.2184916,3213.0,3212.4,0.03112937]
[1767685648864,1.2184916,3213.0,3212.2,3.36533199]
[1767685649175,1.2184916,3213.0,3212.2,3.76696912]
[1767685649976,1.2184916,3213.0,3212.2,6.8801003]
[1767685650178,1.2184916,3213.0,3212.3,0.28335282]
[1767685650377,0.31086669,3213.0,3212.3,0.28335282]
[1767685651750,0.31086669,3213.0,3212.3,0.25222248]
[1767685652066,0.31086669,3213.0,3212.4,3.11293736]
[1767685652266,1.25936661,3213.0,3212.3,0.25222248]
[1767685652464,1.25936661,3213.0,3212.1,3.11317107]
[1767685652465,0.94849992,3212.9,3212.1,3.11317107]
[1767685652772,0.94849992,3212.9,3212.0,4.646]
[1767685652773,0.94849992,3212.9,3212.4,0.002]
[1767685652976,0.94849992,3212.8,3212.4,0.002]
[1767685659558,0.001,3212.9,3212.4,0.002]
[1767685659789,0.94949992,3212.9,3212.4,0.002]
[1767685660099,0.94949992,3212.9,3212.4,3.11493736]
[1767685661766,0.001,3212.9,3212.5,0.0311284]
[1767685662355,0.001,3212.9,3212.5,3.11282345]
[1767685662887,0.001,3212.9,3212.5,0.46697855]
[1767685663389,0.94949992,3212.9,3212.4,0.002]
[1767685663555,0.94949992,3212.9,3212.4,3.11493081]
[1767685663753,0.001,3212.9,3212.5,3.11278983]
[1767685663967,0.001,3212.9,3212.6,0.25222248]
[1767685664187,0.001,3212.9,3212.5,3.11278983]
[1767685664492,0.001,3212.9,3212.6,3.76069521]
[1767685665392,0.001,3212.9,3212.6,0.64798779]
[1767685665600,0.001,3212.9,3212.5,3.11278451]
[1767685665959,0.001,3212.9,3212.6,3.11274163]
[1767685666303,0.001,3212.9,3212.5,3.11280829]
[1767685666551,0.94949992,3212.9,3212.4,3.11493607]
[1767685666661,0.94949992,3212.9,3212.7,0.002]
[1767685667060,0.94849992,3212.5,3210.9,0.002]
[1767685667287,0.94849992,3211.9,3210.9,0.002]
[1767685667485,0.94849992,3211.7,3210.9,0.002]
[1767685668494,0.94849992,3211.5,3210.9,4.64851793]
[1767685668792,4.06205821,3211.8,3210.9,4.64851793]
[1767685668972,0.94849992,3211.7,3210.9,4.64851793]
[1767685669173,0.94849992,3211.7,3211.0,0.46505179]
[1767685669384,0.94849992,3211.7,3210.9,0.002]
[1767685671007,0.12282455,3211.9,3210.9,0.25822248]
[1767685671196,0.94849992,3211.8,3210.9,0.25822248]
[1767685671401,0.94849992,3211.8,3210.9,0.002]
[1767685671402,0.94849992,3211.7,3210.9,0.002]
[1767685672819,0.94849992,3211.7,3210.9,3.1163916]
[1767685673020,0.94849992,3211.7,3210.9,6.9463916]
[1767685674115,0.94849992,3211.7,3211.0,0.03114294]
[1767685674421,0.94849992,3211.7,3211.1,0.69775345]
[1767685674918,0.94849992,3211.7,3211.1,3.81190907]
[1767685675605,0.12282455,3211.9,3211.1,3.81190907]
[1767685675809,0.12282455,3211.9,3211.2,0.031141]
[1767685676114,1.05467445,3211.9,3211.1,0.69775345]
[1767685676316,1.05467445,3211.9,3211.1,3.11411657]
[1767685676533,1.05467445,3211.9,3211.1,3.37033905]
[1767685677691,0.12282455,3211.9,3211.2,0.28736348]
[1767685677921,0.04611342,3211.9,3211.2,0.28736348]
[1767685678724,0.001,3211.4,3211.2,0.28736348]
[1767685678924,0.04611342,3211.9,3211.3,3.84717144]
[1767685679327,0.04611342,3211.9,3211.3,7.21739759]
[1767685679494,0.04454681,3211.9,3211.4,0.28736154]
[1767685679700,0.9318499,3212.2,3211.4,0.28736154]
[1767685679923,0.9318499,3212.2,3211.4,0.25622248]
[1767685680230,0.9318499,3212.2,3211.9,0.01676757]
[1767685688735,0.93978592,3212.4,3211.9,0.01676757]
[1767685690350,0.93978592,3212.8,3211.9,3.38641201]
[1767685690632,0.93978592,3212.8,3211.9,3.13010904]
[1767685690930,0.001,3212.1,3212.0,0.33863315]
[1767685691732,0.001,3212.1,3211.9,0.01676757]
[1767685692031,0.001,3212.1,3211.1,3.11413853]
[1767685692032,0.94078592,3212.1,3211.1,3.11413853]
[1767685692345,0.94078592,3212.1,3210.9,0.002]
[1767685692346,0.93978592,3212.0,3210.9,0.002]
[1767685692557,0.93978592,3211.8,3211.0,0.03114294]
[1767685692901,0.93978592,3211.8,3210.9,0.002]
[1767685694608,0.93978592,3211.6,3210.9,0.002]
[1767685696837,0.93978592,3211.5,3210.9,0.002]
[1767685701637,0.93978592,3211.9,3210.9,0.24944215]
[1767685701824,0.93978592,3211.9,3210.9,0.21829824]
[1767685702634,0.93978592,3211.9,3211.2,0.002]
[1767685702936,0.93978592,3211.8,3211.2,0.002]
[1767685703435,0.48800479,3211.9,3211.2,0.002]
[1767685703436,0.001,3211.9,3211.2,0.002]
[1767685703621,0.001,3211.9,3211.2,0.24943924]
[1767685703812,0.001,3211.9,3211.2,0.21829824]
[1767685705738,0.001,3211.9,3211.3,3.33030191]
[1767685705913,0.001,3211.9,3211.4,0.6446364]
[1767685707137,0.001,3211.9,3211.3,0.21629824]
[1767685707335,0.001,3211.9,3211.3,0.24743827]
[1767685707538,0.001,3211.9,3211.3,0.21629824]
[1767685707838,0.001,3211.9,3211.3,3.33027529]
[1767685709642,0.001,3211.9,3211.3,0.21629824]
[1767685709943,0.001,3211.9,3211.3,3.33025023]
[1767685710240,0.001,3211.9,3211.4,0.72623286]
[1767685710835,0.001,3211.9,3211.3,3.33025023]
[1767685711143,0.99414431,3211.9,3211.3,3.33025023]
[1767685711741,0.001,3212.1,3211.6,0.21629824]
[1767685711946,0.99314431,3212.8,3211.8,3.32981713]
[1767685711947,0.99314431,3212.7,3211.8,3.32981713]
[1767685712143,0.99314431,3212.7,3211.8,3.74564363]
[1767685712443,0.99314431,3212.7,3211.9,0.21629824]
[1767685713224,0.99314431,3212.7,3211.8,3.52934539]
[1767685713942,0.99314431,3212.7,3211.8,6.64286428]
[1767685715244,0.99314431,3212.7,3211.8,3.52934539]
[1767685715428,0.99314431,3212.7,3211.9,0.76752346]
[1767685716245,0.99314431,3212.7,3211.9,3.88090901]
[1767685717045,0.99314431,3212.7,3211.9,4.09720725]
[1767685717253,0.99314431,3212.7,3212.0,0.21629824]
[1767685718749,0.99314431,3212.7,3212.0,3.3295504]
[1767685718950,0.99314431,3212.7,3212.1,0.72104594]
[1767685720220,0.99314431,3212.7,3212.1,0.93734418]
[1767685720421,0.99314431,3212.7,3212.1,5.58417723]
[1767685720923,0.99414431,3212.9,3212.3,0.21629824]
[1767685721932,0.99414431,3212.9,3212.1,8.69735971]
[1767685722244,0.99414431,3212.9,3212.2,0.86973597]
[1767685722844,0.99414431,3212.9,3212.3,3.11303427]
[1767685723217,0.001,3213.3,3212.4,4.64683305]
[1767685723420,0.99314431,3213.2,3212.4,0.95472818]
[1767685723647,0.001,3213.3,3212.4,0.95472818]
[1767685723843,0.001,3213.3,3212.6,0.95472818]
[1767685724425,0.99414431,3213.3,3212.6,0.95472818]
[1767685725127,0.001,3213.3,3212.7,0.95472818]
[1767685725455,0.99414431,3213.3,3212.5,3.83399907]
[1767685725655,0.99414431,3213.3,3212.6,0.76639991]
[1767685726027,0.99414431,3213.3,3212.5,0.72119271]
[1767685726226,0.001,3212.6,3212.5,0.72119271]
[1767685726659,0.001,3212.6,3212.2,7.81284218]
[1767685726957,0.001,3212.6,3212.3,3.11302087]
[1767685728430,0.001,3212.6,3212.2,4.69973597]
[1767685728627,0.001,3212.6,3212.2,7.81285045]
[1767685728841,0.001,3212.6,3212.2,8.76757863]
[1767685729043,0.001,3212.6,3212.3,0.87675786]
[1767685729640,0.001,3212.6,3212.3,3.98972043]
[1767685730126,0.001,3212.6,3212.3,3.98974255]
[1767685730752,0.001,3212.6,3212.3,0.87675786]
[1767685732029,0.001,3212.6,3212.2,4.06778706]
[1767685732224,0.001,3212.6,3212.2,0.95472818]
[1767685732955,0.001,3212.6,3212.3,3.11301279]
[1767685733154,0.99314431,3212.5,3211.8,3.83]
[1767685733360,0.99314431,3212.5,3211.6,3.11365804]
[1767685733561,0.99314431,3212.5,3211.6,3.73640697]
[1767685733743,0.99314431,3212.4,3211.6,3.73640697]
[1767685734140,0.99314431,3212.4,3211.6,0.62274893]
[1767685734467,0.99314431,3212.4,3211.3,0.815]
[1767685735166,0.99314431,3212.4,3211.5,3.11375437]
[1767685735344,0.99314431,3212.4,3211.3,3.92899883]
[1767685735547,0.99314431,3212.4,3211.5,3.11375259]
[1767685735763,0.99314431,3212.3,3211.4,3.1139067]
[1767685735964,0.99314431,3212.3,3211.2,0.002]
[1767685736167,0.99314431,3212.1,3211.2,0.002]
[1767685738166,0.99314431,3212.0,3211.2,0.002]
[1767685738346,0.99314431,3212.0,3211.9,0.002]
[1767685738548,0.99314431,3212.0,3211.2,0.002]
[1767685738848,0.99314431,3212.0,3211.5,0.002]
[1767685739050,0.99314431,3211.9,3211.5,0.002]
[1767685741363,0.93144156,3211.8,3211.5,0.002]
[1767685742664,0.93144156,3211.7,3211.5,0.002]
[1767685742964,0.93144156,3211.7,3211.2,0.002]
[1767685743371,0.93144156,3211.7,3210.9,0.002]
[1767685743537,0.93144156,3211.5,3210.9,0.002]
[1767685744984,0.93144156,3211.4,3210.9,0.002]
[1767685745139,0.52929241,3212.0,3210.9,0.002]
[1767685745342,0.93144156,3211.8,3210.9,0.98602052]
[1767685745676,0.93144156,3211.8,3211.0,1.01516346]
[1767685746678,0.93144156,3211.8,3211.0,0.98402052]
[1767685747173,0.93144156,3211.8,3211.1,0.03114197]
[1767685747539,0.93144156,3211.8,3211.1,1.01516249]
[1767685748071,0.93144156,3212.1,3211.2,0.98402052]
[1767685748874,0.93144156,3212.1,3211.4,0.98402052]
[1767685749277,0.93144156,3212.5,3211.6,0.98402052]
[1767685749444,0.93144156,3212.5,3211.7,0.98402052]
[1767685750773,0.001,3211.8,3211.7,0.98402052]
[1767685750988,0.93144156,3212.5,3211.7,0.98402052]
[1767685751689,0.93144156,3212.4,3211.7,0.98402052]
[1767685752747,0.93144156,3212.4,3211.7,4.09762724]
[1767685752959,0.001,3212.6,3211.9,0.98402052]
[1767685753980,0.93244156,3212.6,3211.9,0.98402052]
[1767685755194,0.93244156,3212.6,3211.6,0.816]
[1767685755477,0.93244156,3212.6,3211.2,1.80202052]
[1767685755794,0.93144156,3212.4,3211.3,4.09796014]
[1767685755982,0.93144156,3212.4,3211.4,0.49159601]
[1767685757985,0.93144156,3212.2,3211.4,0.49159601]
[1767685758390,3.11294429,3212.4,3211.6,0.98402052]
[1767685758391,0.93144156,3212.4,3211.6,0.98402052]
[1767685758685,0.93144156,3212.4,3211.4,0.49159601]
[1767685759784,0.93144156,3212.4,3211.4,3.60549182]
[1767685759984,4.0444524,3212.4,3211.5,0.39168727]
[1767685760287,0.93144156,3212.3,3211.5,0.39168727]
[1767685760788,0.93144156,3212.3,3211.5,0.36054918]
[1767685761082,0.93144156,3212.3,3211.4,0.49159601]
[1767685762496,0.93244156,3212.0,3211.4,0.49159601]
[1767685762659,0.93244156,3212.0,3211.2,0.98602052]
[1767685763156,0.93244156,3212.0,3211.2,0.002]
[1767685763760,0.93244156,3212.0,3211.2,3.14723201]
[1767685764179,0.93244156,3212.0,3211.2,0.033141]
[1767685764785,0.93244156,3212.0,3211.2,0.002]
[1767685764971,0.93144156,3211.9,3211.2,0.83633151]
[1767685765983,0.93144156,3211.9,3211.3,0.03114003]
[1767685766292,0.93144156,3211.9,3211.2,0.83633151]
[1767685771868,4.04488164,3211.9,3211.2,0.83633151]
[1767685772471,0.93144156,3211.9,3211.2,0.83633151]
[1767685774265,0.93144156,3211.9,3211.5,0.002]
[1767685776494,4.04486696,3211.9,3211.5,0.002]
[1767685777398,0.93144156,3211.9,3211.5,0.002]
[1767685777694,4.04486645,3211.9,3211.5,0.002]
[1767685778397,0.93144156,3211.9,3211.5,0.002]
[1767685778900,4.04486905,3211.9,3211.5,0.002]
[1767685781399,0.94659045,3211.8,3211.5,0.002]
[1767685781708,0.94659045,3211.8,3210.9,0.002]
[1767685781902,0.94659045,3211.8,3210.5,0.002]
[1767685782768,0.94659045,3211.8,3210.5,0.93936667]
[1767685783374,0.94659045,3211.6,3210.5,0.002]
[1767685783605,0.94659045,3211.4,3210.5,0.002]
[1767685784191,0.94659045,3211.4,3210.5,0.93936667]
[1767685784509,0.94659045,3211.4,3210.6,0.03114682]
[1767685785022,0.94659045,3211.4,3210.6,0.96851349]
[1767685785192,0.94659045,3211.6,3210.6,0.96851349]
[1767685785391,0.94659045,3211.9,3211.0,0.93736667]
[1767685785592,0.001,3212.0,3211.2,0.93736667]
[1767685785908,3.11433199,3212.0,3211.2,0.93736667]
[1767685786279,0.001,3212.0,3211.2,0.93736667]
[1767685788121,0.94759045,3212.0,3211.2,0.93736667]
[1767685788306,0.94759045,3212.0,3211.2,4.05145942]
[1767685788480,0.94759045,3212.0,3211.3,0.47680744]
[1767685790108,4.06099941,3212.0,3211.3,0.47680744]
[1767685790303,0.94659045,3211.9,3211.2,0.93736667]
[1767685790704,0.94659045,3211.9,3211.1,0.71661499]
[1767685790899,0.94659045,3211.9,3211.1,1.65398166]
[1767685791107,0.94659045,3211.9,3211.1,4.76812701]
[1767685793118,0.94659045,3211.8,3210.9,3.83]
[1767685793496,0.94659045,3211.8,3210.9,4.76736667]
[1767685793899,0.94659045,3211.8,3210.9,3.83]
[1767685794512,0.94659045,3211.8,3210.9,4.76736667]
[1767685794684,0.94659045,3211.6,3210.9,3.83]
[1767685794881,0.94659045,3211.6,3210.8,0.002]
[1767685794882,0.94659045,3211.3,3210.8,0.002]
[1767685797316,6.2278134,3211.4,3210.8,0.002]
[1767685797317,0.94766587,3211.1,3210.8,0.002]
[1767685797517,0.94766587,3210.9,3210.5,0.002]
[1767685799796,4.06206224,3210.9,3210.5,0.002]
[1767685800223,0.94766587,3210.9,3210.5,0.002]
[1767685800424,4.06206247,3210.9,3210.5,0.002]
[1767685800613,0.94766587,3210.9,3210.5,0.002]
[1767685800809,0.16652526,3210.8,3210.5,0.002]
[1767685801009,4.06206714,3210.9,3210.5,0.002]
[1767685801220,0.94766587,3210.9,3210.5,0.002]
[1767685802502,4.06205815,3210.9,3210.5,0.002]
[1767685803202,0.94766587,3210.9,3210.5,0.002]
[1767685807717,0.90143438,3211.1,3210.5,0.002]
[1767685808206,0.90143438,3211.1,3210.5,0.99727625]
[1767685809436,3.11402737,3211.3,3210.5,0.99727625]
[1767685809437,4.0153002,3211.5,3210.6,0.99527625]
[1767685810506,0.90143438,3211.4,3210.6,0.99527625]
[1767685811138,0.90143438,3211.4,3210.8,0.99727625]
[1767685811344,0.90243438,3211.6,3210.8,0.99727625]
[1767685813040,4.01524412,3211.5,3210.8,0.99727625]
[1767685813239,0.90143438,3211.4,3210.8,0.99727625]
[1767685815432,0.90143438,3211.3,3210.8,0.002]
[1767685817643,0.90143438,3211.1,3210.8,0.002]
[1767685818442,0.90143438,3211.4,3210.8,0.002]
[1767685820142,4.01543805,3211.3,3210.8,0.002]
[1767685820316,0.90143438,3211.2,3210.8,0.002]
[1767685822663,0.90143438,3211.0,3210.5,0.002]
[1767685823269,0.90143438,3211.0,3210.8,0.002]
[1767685823474,0.90143438,3210.8,3210.5,0.002]
[1767685825169,1.61455877,3210.8,3210.5,0.002]
[1767685825469,0.90143438,3210.7,3210.5,0.002]
[1767685825669,0.90143438,3210.7,3209.9,0.99715957]
[1767685825858,0.90143438,3210.7,3209.9,0.00188332]
[1767685826256,6.94214469,3210.8,3209.9,0.00188332]
[1767685826257,0.90143438,3210.5,3209.9,0.00188332]
[1767685826437,0.90143438,3210.3,3209.9,0.00188332]
[1767685826868,0.90143438,3210.1,3209.9,0.00188332]
[1767685829872,4.01660511,3210.1,3209.9,0.00188332]
[1767685830374,0.90143438,3210.0,3209.9,0.00188332]
[1767685830774,0.90143438,3210.0,3209.3,0.99527625]
[1767685830951,0.90143438,3209.9,3209.3,0.99527625]
[1767685831277,0.90143438,3209.9,3209.2,0.002]
[1767685831780,3.51700839,3210.0,3209.2,0.99472003]
[1767685831985,4.42675947,3210.0,3209.2,0.99472003]
[1767685832456,0.90975108,3209.9,3209.2,0.002]
[1767685832660,0.90975108,3209.9,3209.2,0.99472003]
[1767685834086,4.02511438,3209.9,3209.2,0.99472003]
[1767685834386,4.47071927,3209.9,3209.2,0.99472003]
[1767685835196,1.35535597,3209.9,3209.5,0.002]
[1767685836272,0.90975108,3209.9,3209.5,0.002]
[1767685837177,4.02515312,3209.9,3209.5,0.002]
[1767685837479,0.90975108,3209.8,3209.5,0.002]
[1767685839984,0.90975108,3209.7,3209.5,0.002]
[1767685841051,0.90975108,3209.7,3209.2,0.002]
[1767685841380,0.90975108,3209.5,3209.2,0.002]
[1767685841601,0.02927402,3210.1,3209.2,0.002]
[1767685841602,0.90975108,3210.0,3209.2,0.002]
[1767685841887,0.90975108,3210.0,3209.2,3.14920179]
[1767685842090,0.90975108,3210.0,3209.2,3.11804138]
[1767685842593,0.90975108,3209.9,3209.2,0.002]
[1767685842768,0.90975108,3209.7,3209.2,0.002]
[1767685843675,3.14447912,3210.1,3209.2,0.99472003]
[1767685843875,4.0542302,3210.1,3209.2,0.99472003]
[1767685844078,0.90975108,3210.0,3209.2,0.99472003]
[1767685846195,3.11536184,3209.9,3209.2,0.99472003]
[1767685846356,3.83232104,3209.9,3209.2,0.99472003]
[1767685846556,0.90975108,3209.8,3209.2,0.99472003]
[1767685847464,0.90975108,3209.8,3209.5,0.002]
[1767685847672,0.001,3209.6,3209.5,0.002]
[1767685847981,0.91075108,3209.6,3209.5,0.002]
[1767685848361,1.31337378,3209.6,3209.2,0.002]
[1767685848695,0.90975108,3209.5,3209.2,0.002]
[1767685849658,3.51930541,3209.6,3209.2,0.002]
[1767685850780,4.42905649,3209.6,3209.2,0.002]
[1767685851559,0.90975108,3209.5,3209.2,0.002]
[1767685851758,6.63498812,3209.6,3209.2,0.002]
[1767685851759,1.664225,3209.4,3209.2,0.002]
[1767685851959,0.90975108,3209.3,3209.2,0.002]
[1767685853887,4.02569536,3209.3,3209.2,0.002]
[1767685854084,4.02569536,3209.3,3208.6,0.99272003]
[1767685854291,4.02569778,3209.3,3208.6,0.99272003]
[1767685854476,4.50371495,3209.3,3208.6,0.99272003]
[1767685854986,1.38776825,3209.3,3208.6,0.99272003]
[1767685855284,4.02569728,3209.3,3208.6,0.99272003]
[1767685855487,4.02571642,3209.3,3208.6,0.99272003]
[1767685855857,0.90975108,3209.3,3208.6,0.99272003]
[1767685856058,0.90975108,3209.3,3208.7,0.99272003]
[1767685856374,4.02555272,3209.5,3208.7,0.99272003]
[1767685856577,0.90975108,3209.4,3208.7,0.99272003]
[1767685857102,3.83001407,3209.5,3208.7,0.99272003]
[1767685857561,4.79613692,3209.5,3208.7,0.99272003]
[1767685857892,7.91193856,3209.5,3208.7,0.99272003]
[1767685858100,0.96612285,3209.4,3208.3,0.95197368]
[1767685858264,0.96612285,3209.4,3208.5,0.95197368]
[1767685859093,0.96612285,3209.4,3208.6,0.95197368]
[1767685859398,3.83000359,3209.5,3208.6,0.95197368]
[1767685859600,3.83000359,3209.5,3209.0,0.002]
[1767685859792,0.96612285,3209.4,3209.0,0.002]
[1767685860167,3.83000359,3209.5,3209.0,0.002]
[1767685860367,0.69466602,3209.4,3209.0,0.002]
[1767685860670,0.96612285,3209.3,3209.0,0.002]
[1767685860894,0.96612285,3209.3,3208.6,0.002]
[1767685861400,3.11604138,3209.2,3208.6,0.002]
[1767685861758,4.09874054,3209.2,3208.6,0.002]
[1767685862006,4.88967741,3209.2,3208.6,0.002]
[1767685862371,1.77363603,3209.2,3208.6,0.002]
[1767685862715,0.001,3209.6,3208.6,0.002]
[1767685862716,3.11575011,3209.5,3208.6,0.98509975]
[1767685863078,6.23150022,3209.5,3208.6,0.98509975]
[1767685863426,0.98269916,3209.5,3208.6,0.98509975]
[1767685863696,0.98269916,3209.5,3208.6,0.002]
[1767685864897,0.98269916,3209.5,3208.7,0.98309975]
[1767685865072,0.72150052,3209.4,3208.7,0.98309975]
[1767685865409,0.72150052,3209.4,3208.6,0.002]
[1767685865410,4.09864344,3209.3,3208.6,0.002]
[1767685865615,4.09864344,3209.3,3208.6,0.98509975]
[1767685868900,7.21458772,3209.3,3208.6,0.98509975]
[1767685869416,4.09864344,3209.3,3208.6,0.98509975]
[1767685869583,4.89224435,3209.3,3208.6,0.98509975]
[1767685870383,8.00818863,3209.3,3208.6,0.98509975]
[1767685871104,4.89224435,3209.3,3208.6,0.98509975]
[1767685871478,0.98269916,3209.2,3208.6,0.002]
[1767685871928,0.98269916,3209.2,3207.9,3.11926083]
[1767685872209,0.98269916,3209.1,3208.1,0.98309975]
[1767685872613,0.98269916,3209.1,3208.2,0.98309975]
[1767685872787,0.98369916,3209.0,3208.2,0.98309975]
[1767685872983,0.98369916,3209.0,3208.5,0.002]
[1767685874223,3.11633269,3208.9,3208.5,0.002]
[1767685874422,0.98269916,3208.8,3208.5,0.002]
[1767685874720,0.98269916,3208.8,3207.4,0.002]
[1767685875015,0.98269916,3208.8,3207.5,0.98309975]
[1767685875216,9.34899807,3208.9,3207.5,0.98309975]
[1767685875217,0.98269916,3208.6,3207.5,0.98309975]
[1767685875615,0.98269916,3208.4,3207.5,0.98309975]
[1767685876321,0.98269916,3208.2,3207.5,0.98309975]
[1767685877918,0.98269916,3208.2,3207.3,0.98397641]
[1767685878421,0.266218,3208.5,3207.3,0.98397641]